[Event "Summer Prague Open A 2020"]
[Site "Prague"]
[Date "2020.08.13"]
[Round "7.7"]
[White "Ludvik, Tomas"]
[Black "Simek, Petr"]
[Result "1/2-1/2"]
[ECO "D37"]
[WhiteElo "2202"]
[BlackElo "2344"]
[Annotator "ChessBase"]
[PlyCount "47"]
[EventDate "2020.08.08"]
[EventCountry "CZE"]
[SourceTitle "playchess.com"]
[Source "ChessBase"]
[SourceQuality "1"]
[TimeControl "40/5400+30:1800+30"]

1. d4 {[%emt 0:00:00]} Nf6 {[%emt 0:00:00]} 2. c4 {[%emt 0:00:00]} e6 {[%emt 0:00:00]} 3. Nf3 {[%emt 0:00:00]} d5 {[%emt 0:00:00]} 4. Nc3 {[%emt 0:00:00]} Nbd7 {[%emt 0:00:00]} 5. Bf4 {[%emt 0:00:31]} dxc4 {[%emt 0:00:10]} 6. e3 {[%emt 0:00:07]} Nd5 {[%emt 0:00:11]} 7. Bxc4 {[%emt 0:00:06]} Nxf4 {[%emt 0:00:05]} 8. exf4 {[%emt 0:00:06]} Nb6 {[%emt 0:00:07]} 9. Bb3 {[%emt 0:00:09]} g6 {[%emt 0:00:07]} 10. O-O {[%emt 0:01:44]} Bg7 {[%emt 0:00:04]} 11. Rc1 {[%emt 0:03:59]} O-O {[%emt 0:02:33]} 12. g3 {[%emt 0:03:44]} Nd5 {[%emt 0:15:51]} 13. Qc2 {[%emt 0:07:07]} c6 {[%emt 0:03:04]} 14. Rfd1 {[%emt 0:03:30]} Qe7 {[%emt 0:03:35]} 15. Ne4 {[%emt 0:04:45]} Rd8 {[%emt 0:00:34]} 16. Nc5 {[%emt 0:01:59]} b6 {[%emt 0:09:35]} 17. Ne4 {[%emt 0:02:34]} Bb7 {[%emt 0:00:10]} 18. Ne5 {[%emt 0:01:00]} Rac8 {[%emt 0:00:26]} 19. a3 {[%emt 0:04:17]} h6 {[%emt 0:03:23]} 20. Ba4 {[%emt 0:09:40]} Rc7 {[%emt 0:40:24]} 21. b4 {[%emt 0:06:39]} Rdc8 {[%emt 0:00:13]} 22. Qd2 {[%emt 0:05:54]} Nf6 {[%emt 0:01:22]} 23. Nc3 {[%emt 0:05:03]} a6 {[%emt 0:04:00]} 24. Bb3 {[%emt 0:12:18]} 1/2-1/2

[Event "Summer Prague Open A 2020"]
[Site "Prague"]
[Date "2020.08.13"]
[Round "7.8"]
[White "Defromont, Benjamin"]
[Black "Malassagne, Raphael"]
[Result "1-0"]
[ECO "B12"]
[WhiteElo "2236"]
[BlackElo "2305"]
[Annotator "ChessBase"]
[PlyCount "83"]
[EventDate "2020.08.08"]
[EventCountry "CZE"]
[SourceTitle "playchess.com"]
[Source "ChessBase"]
[SourceQuality "1"]
[TimeControl "40/5400+30:1800+30"]

1. e4 {[%emt 0:00:00]} c6 {[%emt 0:00:00]} 2. d4 {[%emt 0:00:00]} d5 {[%emt 0:00:00]} 3. e5 {[%emt 0:00:09]} Na6 {[%emt 0:02:43]} 4. Nf3 {[%emt 0:03:50]} g6 {[%emt 0:01:03]} 5. c3 {[%emt 0:08:00]} Nc7 {[%emt 0:00:26]} 6. Bd3 {[%emt 0:00:43]} Bg7 {[%emt 0:01:16]} 7. O-O {[%emt 0:01:13]} Nh6 {[%emt 0:02:00]} 8. Re1 {[%emt 0:01:05]} O-O {[%emt 0:00:12]} 9. h3 {[%emt 0:04:52]} f6 {[%emt 0:02:06]} 10. exf6 {[%emt 0:08:15]} exf6 {[%emt 0:01:25]} 11. Bf4 {[%emt 0:00:22]} Ne6 {[%emt 0:03:06]} 12. Bh2 {[%emt 0:00:22]} f5 {[%emt 0:10:35]} 13. Be5 {[%emt 0:06:28]} Bxe5 {[%emt 0:01:22]} 14. Nxe5 {[%emt 0:00:52]} f4 {[%emt 0:07:06]} 15. Nd2 {[%emt 0:02:03]} Nf5 {[%emt 0:07:10]} 16. Ndf3 {[%emt 0:02:17]} Kg7 {[%emt 0:00:23]} 17. Qc2 {[%emt 0:04:07]} Ng5 {[%emt 0:15:17]} 18. Nxg5 {[%emt 0:06:33]} Qxg5 {[%emt 0:00:05]} 19. Nf3 {[%emt 0:00:05]} Qf6 {[%emt 0:02:42]} 20. Re5 {[%emt 0:02:10]} Nd6 {[%emt 0:07:06]} 21. Rae1 {[%emt 0:00:48]} Bd7 {[%emt 0:00:55]} 22. b3 {[%emt 0:09:52]} Rae8 {[%emt 0:01:07]} 23. c4 {[%emt 0:02:31]} Be6 {[%emt 0:06:57]} 24. cxd5 {[%emt 0:05:57]} Bxd5 {[%emt 0:01:56]} 25. Rxe8 {[%emt 0:02:13]} Rxe8 {[%emt 0:00:05]} 26. Rxe8 {[%emt 0:00:40]} Nxe8 {[%emt 0:00:05]} 27. Be4 {[%emt 0:00:22]} Qd6 {[%emt 0:04:18]} 28. Bxd5 {[%emt 0:01:45]} Qxd5 {[%emt 0:00:09]} 29. Qe2 {[%emt 0:00:19]} Kf8 {[%emt 0:02:51]} 30. Qd2 {[%emt 0:00:34]} Qe4 {[%emt 0:05:56]} 31. Ng5 {[%emt 0:06:41]} Qf5 {[%emt 0:09:26]} 32. Qb4+ {[%emt 0:01:41]} c5 {[%emt 0:00:48]} 33. dxc5 {[%emt 0:01:56]} Qxg5 {[%emt 0:00:06]} 34. c6+ {[%emt 0:00:27]} Kg7 {[%emt 0:00:43]} 35. cxb7 {[%emt 0:04:48]} f3 {[%emt 0:00:10]} 36. g3 {[%emt 0:00:25]} Qc1+ {[%emt 0:00:46]} 37. Kh2 {[%emt 0:00:03]} Qf1 {[%emt 0:03:48]} 38. Qe7+ {[%emt 0:00:15]} Kh6 {[%emt 0:00:08]} 39. Qf8+ {[%emt 0:00:16]} Ng7 {[%emt 0:01:04]} 40. Qf4+ {[%emt 0:00:06]} g5 {[%emt 0:00:13]} 41. Qf6+ {[%emt 0:30:06]} Kh5 {[%emt 0:30:06]} 42. g4+ {[%emt 0:00:19]} 1-0

[Event "Summer Prague Open A 2020"]
[Site "Prague"]
[Date "2020.08.13"]
[Round "7.12"]
[White "Vokac, Marek"]
[Black "Post, Hugo"]
[Result "1-0"]
[ECO "E21"]
[WhiteElo "2362"]
[BlackElo "2203"]
[Annotator "ChessBase"]
[PlyCount "57"]
[EventDate "2020.08.08"]
[EventCountry "CZE"]
[SourceTitle "playchess.com"]
[Source "ChessBase"]
[SourceQuality "1"]
[TimeControl "40/5400+30:1800+30"]

1. d4 {[%emt 0:00:00]} Nf6 {[%emt 0:00:00]} 2. c4 {[%emt 0:00:00]} e6 {[%emt 0:00:00]} 3. Nf3 {[%emt 0:00:03]} b6 {[%emt 0:00:05]} 4. Nc3 {[%emt 0:00:13]} Bb7 {[%emt 0:04:02]} 5. Bg5 {[%emt 0:00:10]} Be7 {[%emt 0:02:37]} 6. e3 {[%emt 0:00:33]} O-O {[%emt 0:03:37]} 7. Bd3 {[%emt 0:01:33]} c5 {[%emt 0:02:53]} 8. dxc5 {[%emt 0:05:32]} bxc5 {[%emt 0:01:29]} 9. O-O {[%emt 0:01:47]} d6 {[%emt 0:06:51]} 10. Qe2 {[%emt 0:05:41]} Nbd7 {[%emt 0:01:26]} 11. Rad1 {[%emt 0:01:43]} Qb6 {[%emt 0:02:44]} 12. e4 {[%emt 0:01:29]} Rab8 {[%emt 0:05:52]} 13. Rd2 {[%emt 0:01:05]} Rfd8 {[%emt 0:09:31]} 14. Rfd1 {[%emt 0:05:38]} Nf8 {[%emt 0:06:50]} 15. Bb1 {[%emt 0:09:46]} Ng6 {[%emt 0:02:55]} 16. Nh4 {[%emt 0:08:44]} Ne5 {[%emt 0:07:55]} 17. f4 {[%emt 0:03:00]} Nc6 {[%emt 0:00:04]} 18. e5 {[%emt 0:02:43]} dxe5 {[%emt 0:01:28]} 19. fxe5 {[%emt 0:05:14]} Ne8 {[%emt 0:00:08]} 20. Bxe7 {[%emt 0:14:08]} Nxe7 {[%emt 0:00:01]} 21. Rd7 {[%emt 0:00:12]} Ng6 {[%emt 0:07:34]} 22. Bxg6 {[%emt 0:04:29]} hxg6 {[%emt 0:03:00]} 23. Qf2 {[%emt 0:00:11]} f5 {[%emt 0:04:33]} 24. Nxg6 {[%emt 0:00:10]} Rxd7 {[%emt 0:01:14]} 25. Rxd7 {[%emt 0:00:04]} Bc6 {[%emt 0:02:47]} 26. Ne7+ {[%emt 0:02:43]} Kf8 {[%emt 0:00:02]} 27. Ncd5 {[%emt 0:05:11]} Bxd5 {[%emt 0:10:03]} 28. Ng6+ {[%emt 0:00:24]} Kg8 {[%emt 0:00:07]} 29. Qh4 {[%emt 0:00:18]} 1-0

[Event "Summer Prague Open A 2020"]
[Site "Prague"]
[Date "2020.08.13"]
[Round "7.13"]
[White "Kratochvil, Vit"]
[Black "Stinka, Jakub"]
[Result "1-0"]
[ECO "B57"]
[WhiteElo "2205"]
[BlackElo "2305"]
[Annotator "ChessBase"]
[PlyCount "75"]
[EventDate "2020.08.08"]
[EventCountry "CZE"]
[SourceTitle "playchess.com"]
[Source "ChessBase"]
[SourceQuality "1"]
[TimeControl "40/5400+30:1800+30"]

1. e4 c5 2. Nf3 Nc6 3. d4 cxd4 4. Nxd4 Nf6 5. Nc3 d6 6. Bc4 Qb6 7. Nxc6 bxc6 8. O-O g6 9. Bb3 Bg7 10. Be3 Qc7 11. f3 O-O 12. Qd2 Rd8 13. Rfd1 Ba6 14. Na4 Nd7 15. c4 Ne5 16. Rac1 c5 17. Nc3 Qb7 18. Nd5 e6 19. Nf4 Rab8 20. Ne2 Qc7 21. Bg5 f6 22. Be3 Rb4 23. Nf4 Kf7 24. Nd3 Nxd3 25. Qxd3 d5 26. exd5 exd5 27. cxd5 c4 28. d6 Qc6 29. Qd2 Qb5 30. a4 Qb7 31. Bc2 Rxb2 32. Qa5 Rd7 33. Be4 Qc8 34. Bd5+ Kf8 35. Be6 Qe8 36. Bxd7 Qxe3+ 37. Kh1 Qe2 38. Bh3 1-0

[Event "Summer Prague Open A 2020"]
[Site "Prague"]
[Date "2020.08.13"]
[Round "7.14"]
[White "Houska, Jiri"]
[Black "Pasti, Aron"]
[Result "1-0"]
[ECO "B48"]
[WhiteElo "2202"]
[BlackElo "2325"]
[Annotator "ChessBase"]
[PlyCount "53"]
[EventDate "2020.08.08"]
[EventCountry "CZE"]
[SourceTitle "playchess.com"]
[Source "ChessBase"]
[SourceQuality "1"]
[TimeControl "40/5400+30:1800+30"]

1. e4 {[%emt 0:00:00]} c5 {[%emt 0:00:05]} 2. Nf3 {[%emt 0:00:00]} e6 {[%emt 0:00:25]} 3. d4 {[%emt 0:00:00]} cxd4 {[%emt 0:00:09]} 4. Nxd4 {[%emt 0:00:00]} Nc6 {[%emt 0:00:13]} 5. Nc3 {[%emt 0:00:08]} Qc7 {[%emt 0:00:12]} 6. Be3 {[%emt 0:00:48]} a6 {[%emt 0:00:08]} 7. Bd3 {[%emt 0:00:45]} Bb4 {[%emt 0:00:53]} 8. O-O {[%emt 0:00:51]} Bxc3 {[%emt 0:01:32]} 9. bxc3 {[%emt 0:00:03]} Nge7 {[%emt 0:06:20]} 10. f4 {[%emt 0:02:50]} O-O {[%emt 0:09:26]} 11. Qh5 {[%emt 0:06:10]} g6 {[%emt 0:09:37]} 12. Qh6 {[%emt 0:00:36]} f5 {[%emt 0:04:27]} 13. exf5 {[%emt 0:15:50]} exf5 {[%emt 0:01:15]} 14. Nxc6 {[%emt 0:05:06]} bxc6 {[%emt 0:02:17]} 15. Bd4 {[%emt 0:06:14]} Rf7 {[%emt 0:00:21]} 16. Rae1 {[%emt 0:04:26]} Bb7 {[%emt 0:06:26]} 17. Qg5 {[%emt 0:16:02]} d6 {[%emt 0:07:11]} 18. Re6 {[%emt 0:04:27]} c5 {[%emt 0:16:52]} 19. Rfe1 {[%emt 0:02:45]} Nd5 {[%emt 0:08:12]} 20. Qh6 {[%emt 0:07:09]} Ne7 {[%emt 0:02:23]} 21. Qg5 {[%emt 0:10:00]} Nd5 {[%emt 0:00:12]} 22. Qh6 {[%emt 0:05:09]} Ne7 {[%emt 0:00:13]} 23. Bf6 {[%emt 0:00:56]} Qc6 {[%emt 0:06:33]} 24. Bf1 {[%emt 0:01:43]} Nd5 {[%emt 0:00:49]} 25. Be5 {[%emt 0:01:13]} Re8 {[%emt 0:09:29]} 26. Rxg6+ {[%emt 0:00:58]} hxg6 {[%emt 0:00:03]} 27. Qh8# 1-0

[Event "Summer Prague Open A 2020"]
[Site "Prague"]
[Date "2020.08.13"]
[Round "7.15"]
[White "Froeyman, Helmut"]
[Black "Richter, Philipp"]
[Result "0-1"]
[ECO "C18"]
[WhiteElo "2281"]
[BlackElo "2127"]
[Annotator "ChessBase"]
[PlyCount "57"]
[EventDate "2020.08.08"]
[EventCountry "CZE"]
[SourceTitle "playchess.com"]
[Source "ChessBase"]
[SourceQuality "1"]
[TimeControl "40/5400+30:1800+30"]

1. e4 {[%emt 0:00:00]} e6 {[%emt 0:00:00]} 2. d4 {[%emt 0:00:00]} d5 {[%emt 0:00:00]} 3. Nc3 {[%emt 0:00:00]} Bb4 {[%emt 0:00:00]} 4. e5 {[%emt 0:00:19]} Ne7 {[%emt 0:00:00]} 5. a3 {[%emt 0:00:11]} Bxc3+ {[%emt 0:00:00]} 6. bxc3 {[%emt 0:00:06]} c5 {[%emt 0:00:00]} 7. Qg4 {[%emt 0:00:33]} Qc7 {[%emt 0:00:00]} 8. Qxg7 {[%emt 0:00:20]} Rg8 {[%emt 0:00:04]} 9. Qxh7 {[%emt 0:00:08]} cxd4 {[%emt 0:00:04]} 10. Ne2 {[%emt 0:00:21]} Nbc6 {[%emt 0:00:03]} 11. f4 {[%emt 0:00:15]} dxc3 {[%emt 0:00:06]} 12. h4 {[%emt 0:01:31]} b6 {[%emt 0:00:06]} 13. Nxc3 {[%emt 0:02:21]} Nxe5 {[%emt 0:00:11]} 14. Nb5 {[%emt 0:08:05]} Qb8 {[%emt 0:00:11]} 15. fxe5 {[%emt 0:03:24]} Qxe5+ {[%emt 0:00:12]} 16. Kd1 {[%emt 0:01:17]} a6 {[%emt 0:15:30]} 17. Rb1 {[%emt 0:07:45]} axb5 {[%emt 0:00:25]} 18. Bxb5+ {[%emt 0:13:30]} Bd7 {[%emt 0:00:36]} 19. Bb2 {[%emt 0:14:48]} Qg3 {[%emt 0:07:31]} 20. Bf1 {[%emt 0:24:27]} Qg4+ {[%emt 0:18:07]} 21. Be2 {[%emt 0:02:32]} Qxg2 {[%emt 0:00:15]} 22. Rf1 {[%emt 0:01:08]} Nf5 {[%emt 0:00:54]} 23. Rxf5 {[%emt 0:08:07]} exf5 {[%emt 0:00:09]} 24. Bf6 {[%emt 0:04:32]} f4 {[%emt 0:10:09]} 25. Rb3 {[%emt 0:05:10]} Ra4 {[%emt 0:09:43]} 26. Bd3 {[%emt 0:01:03]} Qg1+ {[%emt 0:06:16]} 27. Kd2 {[%emt 0:00:05]} Rg2+ {[%emt 0:00:15]} 28. Kc3 {[%emt 0:00:41]} Qa1+ {[%emt 0:00:09]} 29. Rb2 {[%emt 0:00:27]} 0-1

[Event "Summer Prague Open A 2020"]
[Site "Prague"]
[Date "2020.08.13"]
[Round "7.16"]
[White "Csiki, Endre"]
[Black "Iolis, Oleg"]
[Result "1/2-1/2"]
[ECO "B51"]
[WhiteElo "2266"]
[BlackElo "2166"]
[Annotator "ChessBase"]
[PlyCount "53"]
[EventDate "2020.08.08"]
[EventCountry "CZE"]
[SourceTitle "playchess.com"]
[Source "ChessBase"]
[SourceQuality "1"]
[TimeControl "40/5400+30:1800+30"]

1. e4 {[%emt 0:00:00]} c5 {[%emt 0:00:00]} 2. Nf3 {[%emt 0:00:00]} d6 {[%emt 0:00:00]} 3. Bb5+ Nc6 4. O-O {[%emt 0:00:00]} Bd7 {[%emt 0:00:04]} 5. Re1 {[%emt 0:00:01]} Nf6 {[%emt 0:00:05]} 6. c3 {[%emt 0:00:06]} a6 {[%emt 0:01:01]} 7. Bf1 {[%emt 0:00:12]} Bg4 {[%emt 0:00:30]} 8. h3 {[%emt 0:00:13]} Bxf3 {[%emt 0:00:12]} 9. Qxf3 {[%emt 0:00:05]} g6 {[%emt 0:00:56]} 10. d3 {[%emt 0:00:44]} Bg7 {[%emt 0:00:12]} 11. Be3 {[%emt 0:00:06]} Rc8 {[%emt 0:04:51]} 12. Nd2 {[%emt 0:01:51]} e5 {[%emt 0:05:40]} 13. g3 {[%emt 0:06:31]} O-O {[%emt 0:00:52]} 14. h4 {[%emt 0:02:51]} Qd7 {[%emt 0:02:40]} 15. Nc4 {[%emt 0:02:13]} Qe6 {[%emt 0:10:05]} 16. Nb6 {[%emt 0:01:47]} Rcd8 {[%emt 0:01:20]} 17. Nd5 {[%emt 0:17:04]} Ne7 {[%emt 0:03:08]} 18. Bh3 {[%emt 0:10:49]} Qxh3 {[%emt 0:00:10]} 19. Nxe7+ {[%emt 0:00:21]} Kh8 {[%emt 0:00:02]} 20. Bg5 {[%emt 0:00:27]} Ng4 {[%emt 0:04:37]} 21. Qg2 {[%emt 0:01:46]} Qxg2+ {[%emt 0:01:59]} 22. Kxg2 {[%emt 0:00:05]} f6 {[%emt 0:11:52]} 23. Bd2 {[%emt 0:00:52]} Bh6 {[%emt 0:01:08]} 24. Bxh6 {[%emt 0:02:11]} Nxh6 {[%emt 0:00:08]} 25. a4 {[%emt 0:00:25]} f5 {[%emt 0:02:07]} 26. Nd5 {[%emt 0:00:57]} Rf7 {[%emt 0:02:42]} 27. Re2 {[%emt 0:00:49]} 1/2-1/2

[Event "Summer Prague Open A 2020"]
[Site "Prague"]
[Date "2020.08.13"]
[Round "7.17"]
[White "Haack, Kevin"]
[Black "Cap, Adam"]
[Result "1-0"]
[ECO "A14"]
[WhiteElo "2180"]
[BlackElo "2278"]
[Annotator "ChessBase"]
[PlyCount "93"]
[EventDate "2020.08.08"]
[EventCountry "CZE"]
[SourceTitle "playchess.com"]
[Source "ChessBase"]
[SourceQuality "1"]
[TimeControl "40/5400+30:1800+30"]

1. c4 {[%emt 0:00:00]} e6 {[%emt 0:00:00]} 2. Nf3 {[%emt 0:00:00]} d5 {[%emt 0:00:00]} 3. g3 {[%emt 0:00:00]} Nf6 {[%emt 0:00:00]} 4. Bg2 {[%emt 0:00:00]} Be7 {[%emt 0:00:02]} 5. O-O {[%emt 0:00:06]} O-O {[%emt 0:00:25]} 6. d4 {[%emt 0:01:19]} dxc4 {[%emt 0:00:12]} 7. Ne5 {[%emt 0:00:22]} Nc6 {[%emt 0:00:20]} 8. Bxc6 {[%emt 0:00:51]} bxc6 {[%emt 0:00:26]} 9. Nxc6 {[%emt 0:00:05]} Qd6 {[%emt 0:05:15]} 10. Nxe7+ {[%emt 0:02:07]} Qxe7 {[%emt 0:01:09]} 11. Qa4 {[%emt 0:00:04]} e5 {[%emt 0:05:19]} 12. dxe5 {[%emt 0:00:32]} Qxe5 {[%emt 0:01:12]} 13. Qxc4 {[%emt 0:00:17]} Be6 {[%emt 0:07:50]} 14. Qd3 {[%emt 0:13:19]} Rad8 {[%emt 0:05:38]} 15. Qe3 {[%emt 0:01:00]} Qh5 {[%emt 0:00:23]} 16. f3 {[%emt 0:02:26]} Bh3 {[%emt 0:18:24]} 17. Re1 {[%emt 0:01:31]} Rfe8 {[%emt 0:00:30]} 18. Qf2 {[%emt 0:04:57]} Nd5 {[%emt 0:06:39]} 19. Bd2 {[%emt 0:15:41]} Re6 {[%emt 0:09:06]} 20. e4 {[%emt 0:10:37]} Nb6 {[%emt 0:01:52]} 21. b3 {[%emt 0:07:33]} Rd3 {[%emt 0:06:01]} 22. Re3 {[%emt 0:02:56]} Red6 {[%emt 0:00:24]} 23. Qe2 {[%emt 0:03:26]} Qe5 {[%emt 0:04:55]} 24. Qxd3 {[%emt 0:11:55]} Rxd3 {[%emt 0:02:34]} 25. Rxd3 {[%emt 0:00:07]} f5 {[%emt 0:00:07]} 26. Nc3 {[%emt 0:03:12]} fxe4 {[%emt 0:00:05]} 27. Re1 {[%emt 0:01:01]} Qc5+ {[%emt 0:02:15]} 28. Be3 {[%emt 0:00:30]} Qb4 {[%emt 0:04:49]} 29. fxe4 {[%emt 0:00:30]} h6 {[%emt 0:01:02]} 30. Bf2 {[%emt 0:03:37]} Nd7 {[%emt 0:04:03]} 31. Nd5 {[%emt 0:03:37]} Qb5 {[%emt 0:01:18]} 32. Nf4 {[%emt 0:01:55]} Bg4 {[%emt 0:01:24]} 33. h3 {[%emt 0:01:19]} Be6 {[%emt 0:02:13]} 34. Red1 {[%emt 0:01:31]} Nc5 {[%emt 0:00:04]} 35. Rd5 {[%emt 0:02:29]} Bxd5 {[%emt 0:00:58]} 36. Rxd5 {[%emt 0:00:06]} Qb4 {[%emt 0:00:39]} 37. Rxc5 {[%emt 0:00:58]} Qxe4 {[%emt 0:00:07]} 38. Rc1 {[%emt 0:03:23]} g5 {[%emt 0:00:56]} 39. Ng2 {[%emt 0:01:17]} a5 {[%emt 0:00:42]} 40. Be3 {[%emt 0:01:45]} Qe5 {[%emt 0:01:18]} 41. Kh2 {[%emt 0:02:16]} Qb2 {[%emt 0:01:31]} 42. Rxc7 {[%emt 0:02:02]} Qxa2 {[%emt 0:00:07]} 43. Ra7 {[%emt 0:01:39]} Qxb3 {[%emt 0:00:27]} 44. Rxa5 {[%emt 0:00:08]} Kh7 {[%emt 0:00:24]} 45. Ra6 {[%emt 0:01:27]} Qd3 {[%emt 0:00:47]} 46. Rb6 {[%emt 0:00:08]} Qe4 {[%emt 0:00:34]} 47. h4 {[%emt 0:04:15]} 1-0

[Event "Summer Prague Open A 2020"]
[Site "Prague"]
[Date "2020.08.13"]
[Round "7.18"]
[White "Kanakova, Natalie"]
[Black "Brejnik, Gustav"]
[Result "0-1"]
[ECO "A11"]
[WhiteElo "2162"]
[BlackElo "2265"]
[Annotator "ChessBase"]
[PlyCount "90"]
[EventDate "2020.08.08"]
[EventCountry "CZE"]
[SourceTitle "playchess.com"]
[Source "ChessBase"]
[SourceQuality "1"]
[TimeControl "40/5400+30:1800+30"]

1. c4 c6 2. Nf3 d5 3. e3 Nf6 4. Nc3 e6 5. b3 Bd6 6. Bb2 O-O 7. Be2 b6 8. O-O Bb7 9. d4 Nbd7 10. Qc2 c5 11. cxd5 exd5 12. Rfd1 Rc8 13. Rac1 Bb8 14. Bf1 Qe7 15. Ba3 Rfd8 16. Qe2 Qe6 17. dxc5 bxc5 18. Na4 Ne4 19. Qb5 Bc6 20. Qa6 Qh6 21. h3 Qd6 22. Bd3 Qe7 23. Bb1 Ba8 24. Qd3 Rc6 25. Nc3 Ndf6 26. Bb2 Nxc3 27. Qxc3 d4 28. Qd3 Re6 29. Ng5 Re5 30. Nxh7 Ne4 31. exd4 Kxh7 32. f3 cxd4 33. Bxd4 Re6 34. fxe4 Bxe4 35. Qc3 Qd6 36. g3 Bxb1 37. Rxb1 Re4 38. Qc2 Qxg3+ 39. Kf1 Qxh3+ 40. Kg1 Rdxd4 41. Rxd4 Qe3+ 42. Kg2 Qxd4 43. Rh1+ Kg6 44. Re1 f5 45. Qc6+ Bd6 0-1

[Event "Summer Prague Open A 2020"]
[Site "Prague"]
[Date "2020.08.13"]
[Round "7.19"]
[White "Sprenar, Petr"]
[Black "Babula, Milan"]
[Result "1/2-1/2"]
[ECO "A04"]
[WhiteElo "2257"]
[BlackElo "2160"]
[Annotator "RC"]
[PlyCount "123"]
[EventDate "2020.08.08"]
[EventCountry "CZE"]
[SourceTitle "playchess.com"]
[Source "ChessBase"]
[SourceQuality "1"]
[TimeControl "40/5400+30:1800+30"]

1. Nf3 f5 2. g3 Nf6 3. Bg2 d6 4. d3 e5 5. O-O Be7 6. e4 O-O 7. exf5 Bxf5 8. c3 Kh8 9. Nh4 Bc8 10. c4 Nc6 11. Nf3 Bf5 12. Nc3 Qe8 13. h3 Qh5 14. Nh4 Qxd1 15. Rxd1 Be6 16. Be3 a6 17. a3 Ng8 18. Nd5 Bxh4 19. Nxc7 Be7 20. Nxe6 Rf6 21. Nc7 Rc8 22. Nd5 Rf7 23. b4 Nd4 24. Bxd4 exd4 25. Nxe7 Rxe7 26. Re1 Rce8 27. Kf1 Nf6 28. Rxe7 Rxe7 29. Re1 Rxe1+ 30. Kxe1 b6 31. Ke2 g5 32. Bb7 a5 33. bxa5 bxa5 34. Bc6 Kg7 35. Kd2 Kf8 36. Kc2 Ke7 37. Kb3 Kd8 38. Ka4 Kc7 39. Kb5 a4 40. Bg2 Nd7 41. Be4 h6 42. Kxa4 Nc5+ 43. Kb4 Kb6 44. Bf5 Na6+ 45. Kb3 Nc5+ 46. Kc2 Kc6 47. f4 gxf4 48. gxf4 Kc7 49. Kd2 Kd8 50. Ke2 Ke7 51. Be4 Kd7 52. Bd5 Kc7 53. Kd2 Kd7 54. f5 Ke7 55. Ke2 Kf6 56. Be4 Ke5 57. Kf3 Na4 58. Bc6 Nc5 59. a4 Nxd3 60. a5 Nb4 61. Bb7 d5 62. cxd5 1/2-1/2

[Event "Summer Prague Open A 2020"]
[Site "Prague"]
[Date "2020.08.14"]
[Round "8.1"]
[White "Plat, Vojtech"]
[Black "Petr, Martin"]
[Result "1/2-1/2"]
[ECO "D31"]
[WhiteElo "2555"]
[BlackElo "2455"]
[Annotator "ChessBase"]
[PlyCount "30"]
[EventDate "2020.08.08"]
[EventCountry "CZE"]
[SourceTitle "playchess.com"]
[Source "ChessBase"]
[SourceQuality "1"]
[TimeControl "40/5400+30:1800+30"]

1. d4 {[%emt 0:04:33]} d5 {[%emt 0:00:00]} 2. c4 {[%emt 0:00:08]} e6 {[%emt 0:00:14]} 3. Nc3 {[%emt 0:00:06]} Be7 {[%emt 0:00:05]} 4. Nf3 {[%emt 0:01:20]} Nf6 {[%emt 0:00:37]} 5. g3 {[%emt 0:01:33]} O-O {[%emt 0:07:29]} 6. Bg2 {[%emt 0:00:16]} dxc4 {[%emt 0:00:31]} 7. O-O {[%emt 0:03:21]} Nc6 {[%emt 0:11:38]} 8. e3 {[%emt 0:02:52]} Nd5 {[%emt 0:14:15]} 9. Nd2 {[%emt 0:05:38]} Nb6 {[%emt 0:02:50]} 10. Na4 {[%emt 0:05:36]} Na5 {[%emt 0:04:18]} 11. Nc5 {[%emt 0:00:39]} e5 {[%emt 0:02:29]} 12. b4 {[%emt 0:11:03]} cxb3 {[%emt 0:01:44]} 13. axb3 {[%emt 0:00:05]} Nc6 {[%emt 0:00:10]} 14. Bb2 {[%emt 0:00:02]} exd4 {[%emt 0:02:50]} 15. exd4 {[%emt 0:00:03]} Nd5 {[%emt 0:03:24]} 1/2-1/2

[Event "Summer Prague Open A 2020"]
[Site "Prague"]
[Date "2020.08.14"]
[Round "8.3"]
[White "Cernousek, Lukas"]
[Black "Mladek, Richard"]
[Result "1-0"]
[ECO "D71"]
[WhiteElo "2460"]
[BlackElo "2280"]
[Annotator "ChessBase"]
[PlyCount "88"]
[EventDate "2020.08.08"]
[EventCountry "CZE"]
[SourceTitle "playchess.com"]
[Source "ChessBase"]
[SourceQuality "1"]
[TimeControl "40/5400+30:1800+30"]

1. d4 {[%emt 0:00:00]} Nf6 {[%emt 0:00:00]} 2. c4 {[%emt 0:00:00]} g6 {[%emt 0:00:00]} 3. g3 {[%emt 0:00:00]} c6 {[%emt 0:00:00]} 4. Bg2 {[%emt 0:00:00]} d5 {[%emt 0:00:00]} 5. Qa4 {[%emt 0:00:00]} Nfd7 {[%emt 0:00:05]} 6. cxd5 {[%emt 0:00:11]} Nb6 {[%emt 0:00:01]} 7. Qd1 {[%emt 0:00:13]} cxd5 {[%emt 0:00:03]} 8. e3 {[%emt 0:00:10]} Bg7 {[%emt 0:00:19]} 9. Ne2 {[%emt 0:00:06]} O-O {[%emt 0:01:26]} 10. O-O {[%emt 0:00:36]} Nc6 {[%emt 0:01:04]} 11. Nbc3 {[%emt 0:00:25]} e6 {[%emt 0:05:03]} 12. b3 {[%emt 0:00:15]} Qe7 {[%emt 0:03:12]} 13. a4 {[%emt 0:00:25]} a5 {[%emt 0:05:45]} 14. Ba3 {[%emt 0:09:43]} Qf6 {[%emt 0:10:25]} 15. Bxf8 {[%emt 0:05:39]} Bxf8 {[%emt 0:00:02]} 16. Nf4 {[%emt 0:00:17]} Bd7 {[%emt 0:00:43]} 17. Nd3 {[%emt 0:01:14]} Nb4 {[%emt 0:00:07]} 18. Qd2 {[%emt 0:17:46]} Rd8 {[%emt 0:06:41]} 19. Rfc1 {[%emt 0:03:21]} Qf5 {[%emt 0:03:37]} 20. Nxb4 {[%emt 0:11:07]} Bxb4 {[%emt 0:00:22]} 21. Bf1 {[%emt 0:00:07]} Nc8 {[%emt 0:02:42]} 22. Qc2 {[%emt 0:06:00]} Qf6 {[%emt 0:00:53]} 23. Bb5 {[%emt 0:04:20]} Nd6 {[%emt 0:00:20]} 24. Bxd7 {[%emt 0:01:28]} Rxd7 {[%emt 0:01:49]} 25. Qe2 {[%emt 0:08:38]} Kg7 {[%emt 0:00:56]} 26. Kg2 {[%emt 0:02:14]} h5 {[%emt 0:02:24]} 27. Rc2 {[%emt 0:03:34]} Nf5 {[%emt 0:00:58]} 28. Nb5 {[%emt 0:01:23]} e5 {[%emt 0:00:45]} 29. dxe5 {[%emt 0:03:56]} Qxe5 {[%emt 0:00:03]} 30. Rac1 {[%emt 0:03:34]} h4 {[%emt 0:01:44]} 31. Qf3 {[%emt 0:00:23]} d4 {[%emt 0:03:09]} 32. exd4 {[%emt 0:02:33]} Rxd4 {[%emt 0:00:42]} 33. Re2 {[%emt 0:02:00]} Qb8 {[%emt 0:04:32]} 34. Nxd4 {[%emt 0:02:32]} Nxd4 {[%emt 0:00:01]} 35. Qd3 {[%emt 0:00:19]} Nxe2 {[%emt 0:00:25]} 36. Qxe2 {[%emt 0:00:02]} b6 {[%emt 0:00:49]} 37. Qe4 {[%emt 0:02:57]} hxg3 {[%emt 0:02:20]} 38. Qd4+ {[%emt 0:01:35]} Kg8 {[%emt 0:00:45]} 39. hxg3 {[%emt 0:04:39]} Qa8+ {[%emt 0:01:45]} 40. Kg1 {[%emt 0:00:34]} Bc5 {[%emt 0:00:12]} 41. Qf6 {[%emt 0:32:19]} Qb8 {[%emt 0:35:31]} 42. Kh2 {[%emt 0:00:00]} Qc7 {[%emt 0:00:00]} 43. Rc4 {[%emt 0:00:00]} Qe7 {[%emt 0:00:00]} 44. Qxe7 {[%emt 0:00:00]} Bxe7 {[%emt 0:00:00]} 1-0